Cogmind - Beta 15 @@@ ROGUE MODE // 2025.09.14 @ 16:04:42 Player: Runagate Result: Self-destructed Performance ------------- Evolutions (1) 500 Regions Visited (2) 400 Robots Destroyed (28) 140 Value Destroyed (484) 484 Prototype IDs (4) 80 Alien Tech Used (0) 0 Bonus (0) 0 TOTAL SCORE: 1604 Bonus ------- None Cogmind --------- Core Integrity 334/400 Matter 282/300 Energy 250/250 System Corruption 0% Temperature Cool (15) Movement Walking (120) Location -9/Materials Parts ------- > --- POWER (1) -------- Ion Engine > --- PROPULSION (3) --- Aluminum Leg Improved Aluminum Leg Improved Aluminum Leg > --- UTILITY (3) ------ Large Storage Unit Seismic Detector Improved Targeting Computer > --- WEAPON (2) ------- EM Pulse Gun Assault Rifle > --- INVENTORY (15) --- Light Ion Engine Heavy Ion Engine Aluminum Leg Aluminum Leg Heat Sink High-capacity Matter Pod (65) Sensor Array Seismic Detector EM Pulse Gun Medium Laser Light Assault Rifle Light Assault Rifle Light Assault Rifle Peak State ------------ > --- POWER ------------ Ion Engine > --- PROPULSION ------- Aluminum Leg Improved Aluminum Leg Improved Aluminum Leg > --- UTILITY ---------- Large Storage Unit Seismic Detector Improved Targeting Computer > --- WEAPON ----------- EM Pulse Gun Assault Rifle > --- INVENTORY -------- Light Ion Engine Heavy Ion Engine Aluminum Leg Aluminum Leg Heat Sink Medium Matter Pod Sensor Array Seismic Detector EM Pulse Gun Medium Laser Light Assault Rifle Light Assault Rifle Light Assault Rifle [Rating: 13] Favorites ----------- Power Ion Engine Engine Ion Engine Propulsion Light Treads Treads Light Treads Leg Aluminum Leg Utility Seismic Detector Device Seismic Detector Storage Large Storage Unit Processor Improved Targeting Computer Weapon Assault Rifle Energy Gun EM Pulse Gun Ballistic Gun Assault Rifle Build | -11 -10 -9 ------- Run | Yrd Mat Mat Slots Evolved 2 | . . 2 Power . | . . . Propulsion 1 | . . 1 Utility 1 | . . 1 Weapon . | . . . Parts Attached 20 | 8 7 5 Power 2 | 1 . 1 Engine 2 | 1 . 1 Core . | . . . Reactor . | . . . Propulsion 7 | 2 2 3 Treads 2 | 2 . . Leg 5 | . 2 3 Wheel . | . . . Hover . | . . . Flight . | . . . Utility 5 | 3 1 1 Device 2 | 2 . . Storage 2 | 1 1 . Processor 1 | . . 1 Hackware . | . . . Protection . | . . . Artifact . | . . . Weapon 6 | 2 4 . Energy Gun 2 | . 2 . Energy Cannon . | . . . Ballistic Gun 4 | 2 2 . Ballistic Cannon . | . . . Launcher . | . . . Special Weapon . | . . . Impact Weapon . | . . . Slashing Weapon . | . . . Piercing Weapon . | . . . Special Melee Weapon . | . . . Unidentified Prototypes . | . . . Parts Lost . | . . . Power . | . . . Propulsion . | . . . Utility . | . . . Weapon . | . . . Highest Loss Streak . | . . . To Critical Strikes . | . . . Average Backups 7 | 3 8 11 Power 1 | . 1 1 Propulsion 1 | 1 1 1 Utility 2 | . 2 4 Weapon 2 | . 3 5 Tool/Special . | . . . Unused Backups 6 | . . 6 Power 1 | . . 1 Propulsion . | . . . Utility 4 | . . 4 Weapon 1 | . . 1 Tool/Special . | . . . Average Slot Usage (%) 98 | . 100 91 Engine 13 | . 14 11 Treads 21 | . 27 . Leg 7 | . . 33 Device 13 | . 14 11 Storage 13 | . 14 11 Energy Gun 8 | . 8 11 Ballistic Gun 18 | . 19 11 Peak Build Rating 13 | 7 8 13 Average Rating 7 | 6 7 10 On Entrance 5 | . 7 8 Naked Turns . | . . . Heaviest Build 33 | 14 30 33 Greatest Support 40 | 40 40 36 Greatest Overweight (x) 1 | . 1 1 Average Overweight (x) . | . . . Largest Inventory Capacity 15 | 8 15 15 Average Capacity 12 | 7 14 15 Most Carried 14 | 5 12 14 Average Carried 8 | 3 8 11 Final Capacity 15 | 8 15 15 Final Carried 13 | 5 11 13 Class Distribution -------------------- 100% | Mutant Dominant Class ---------------- Mutant | -10/Materials Mutant | -9/Materials Resources | -11 -10 -9 ----------- Run | Yrd Mat Mat Matter Collected 860 | 386 320 154 Remotely . | . . . Salvage Created 731 | 238 345 148 Parts 70 | 25 36 9 Haulers Intercepted . | . . . Recyclers Shooed . | . . . Parts Field Recycled . | . . . Retrieved Matter . | . . . Parts Self-Destructed . | . . . Prevented . | . . . Kills | -11 -10 -9 ------- Run | Yrd Mat Mat Combat Hostiles Destroyed 14 | . 11 3 Guns 13 | . 11 2 AOE 1 | . . 1 Classes Destroyed 7 | 3 4 . Worker 2 | 1 1 . Tunneler 8 | 8 . . Recycler 1 | 1 . . Operator 1 | . 1 . Watcher 2 | . 1 1 Swarmer 6 | . 6 . Grunt 8 | . 5 3 Best Kill Streak 4 | 2 4 2 Combat Bots Only 4 | . 4 2 Max Kills in Single Turn 1 | 1 1 1 Gunslinging . | . . . Exploded 1 | . . 1 Melee . | . . . Uniques/NPCs Destroyed . | . . . Combat | -11 -10 -9 -------- Run | Yrd Mat Mat Hostile Shots Fired 77 | . 63 14 Missed 23 | . 20 3 Hits 54 | . 43 11 Projectile 54 | . 43 11 Critical Strikes 1 | . 1 . Damage Taken 619 | . 406 213 Core 160 | . 94 66 Absorbed by Shields . | . . . Core Remaining (%) 81 | 100 62 . Volleys Fired 82 | 29 44 9 Largest 2 | 2 2 2 Hottest 60 | 40 60 60 Shots Fired 164 | 58 88 18 Gun 164 | 58 88 18 Cannon . | . . . Launcher . | . . . Special . | . . . Kinetic 139 | 58 72 9 Thermal . | . . . Explosive . | . . . Electromagnetic 25 | . 16 9 Robot Hit Streak 10 | 10 9 10 Robot Miss Streak 5 | 3 5 1 Penetration Max . | . . . Secondary Targets 2 | . 2 . Max Gunslinging Chain 1 | . 1 . Shots Hit Robots 101 | 39 49 13 Core Hits 39 | 16 18 5 Critical Kills . | . . . Critical Parts Destroyed 2 | 1 1 . Critical Strikes 2 | 1 1 . Destroy 2 | 1 1 . Melee Attacks . | . . . Impact . | . . . Slashing . | . . . Piercing . | . . . Sneak Attacks . | . . . Combat Hostiles . | . . . Follow-up Attacks . | . . . Damage Inflicted 1318 | 371 632 315 Guns 1118 | 371 588 159 Cannons . | . . . Explosions 197 | . 41 156 Melee . | . . . Ramming 3 | . 3 . Kinetic 872 | 371 440 61 Thermal 100 | . 41 59 Explosive 97 | . . 97 Electromagnetic 246 | . 148 98 Impact . | . . . Slashing . | . . . Piercing . | . . . Highest Corruption . | . . . Average Corruption . | . . . Corruption Purged . | . . . Corruption Blocked . | . . . Overload Shots . | . . . Overflow Damage . | . . . Projectiles . | . . . Explosions . | . . . Melee . | . . . Knockbacks . | . . . Impact . | . . . Kinetic . | . . . Secondary . | . . . Self-Inflicted Damage 97 | . . 97 Shots 3 | . . 3 Rammed 1 | . 1 . Targets Rammed 2 | . 2 . Kicked . | . . . Crushed 1 | . 1 . Highest Temperature 36 | . 36 18 Average Temperature 12 | . 13 5 Received Heat Transfer 174 | . 108 66 Siege Activations . | . . . Martial Activations . | . . . Shielding Activations . | . . . Robots Disrupted . | . . . Combat Hostiles . | . . . Robots Corrupted . | . . . Combat Hostiles . | . . . Parts Fried . | . . . Impact Corruptions . | . . . Robots Melted . | . . . Combat Hostiles . | . . . Parts Melted . | . . . Heat Transferred 150 | . 50 100 Parts Sabotaged . | . . . Parts Stolen . | . . . Parts Stripped . | . . . Power Chain Reactions 3 | . 1 2 Alert | -11 -10 -9 ------- Run | Yrd Mat Mat Maximum Alert Level . | . . . Low Security (%) 100 | 100 100 100 Level 1 . | . . . Level 2 . | . . . Level 3 . | . . . Level 4 . | . . . Level 5 . | . . . High Security . | . . . Max Security . | . . . Peak Influence 145 | 10 145 100 Initial . | . . . Average 31 | 1 45 24 Influence Increases 581 | 50 344 187 Destroy 0b10 Robot/C 280 | . 220 60 Destroy 0b10 Robot/NC 70 | 50 15 5 Destroy Leader 54 | . 42 12 Successful Hack 19 | . 19 . Disable Machine 60 | . . 60 Destroy Structure 53 | . 3 50 Lose Combat Pursuer 45 | . 45 . Influence Decreases 481 | 50 344 87 Time Decay 481 | 50 344 87 Squads Dispatched 4 | . 3 1 Investigation 1 | . 1 . Extermination . | . . . Reinforcement 3 | . 2 1 Assault . | . . . Garrison . | . . . Intercept . | . . . Searches Triggered . | . . . Construction Impeded . | . . . Haulers Reinforced . | . . . Active Scanning Responses . | . . . Cargo Convoy Interrupts . | . . . Stealth | -11 -10 -9 --------- Run | Yrd Mat Mat Distress Signals . | . . . Communications Jammed . | . . . Distress Signals . | . . . Times Spotted 22 | . 17 5 Peak Tracking Total 4 | . 4 2 Tactical Retreats 3 | . 3 . Traps | -11 -10 -9 ------- Run | Yrd Mat Mat Traps Triggered 1 | . 1 . Indirectly . | . . . Trap Hack Attempts . | . . . Triggered . | . . . Disarmed . | . . . Reprogrammed . | . . . Reused . | . . . Traps Extracted . | . . . Installed . | . . . Triggered . | . . . Machines | -11 -10 -9 ---------- Run | Yrd Mat Mat Machines Disabled 4 | . . 4 Max in Single Turn 2 | . . 2 Machines Repaired . | . . . Machines Dismantled . | . . . Machines Sabotaged . | . . . Overloaded Fab Kills . | . . . Hacking | -11 -10 -9 --------- Run | Yrd Mat Mat Machines Accessed 5 | . 4 1 Terminals 5 | . 4 1 Fabricators . | . . . Repair Stations . | . . . Recycling Units . | . . . Scanalyzers . | . . . Garrison Access . | . . . Total Hacks 15 | . 13 2 Successful 4 | . 4 . Failed 11 | . 9 2 Catastrophic 3 | . 3 . Database Lockouts . | . . . Manual 11 | . 11 . Terminals 15 | . 13 2 Fabricators . | . . . Repair Stations . | . . . Recycling Units . | . . . Scanalyzers . | . . . Garrison Access . | . . . Terminal Hacks 4 | . 4 . Prototype ID Bank 2 | . 2 . Patrol Status 1 | . 1 . Zone Layout 1 | . 1 . Fabricator Hacks . | . . . Repair Station Hacks . | . . . Recycling Unit Hacks . | . . . Scanalyzer . | . . . Garrison Access Hacks . | . . . Unauthorized Hacks . | . . . Terminals . | . . . Fabricators . | . . . Repair Stations . | . . . Recycling Units . | . . . Scanalyzers . | . . . Garrison Access . | . . . Data Cores Recovered . | . . . Used . | . . . Hacking Detections 5 | . 4 1 Full Trace Events 1 | . 1 . Feedback Events . | . . . Feedback Blocked . | . . . Robot Schematics Acquired . | . . . Robots Built . | . . . Authchips . | . . . Time . | . . . Total Robot Build Rating . | . . . Part Schematics Acquired . | . . . Parts Built . | . . . Authchips . | . . . Time . | . . . Total Part Build Rating . | . . . Parts Repaired . | . . . Time . | . . . Parts Recycled . | . . . Recycled Matter . | . . . Retrieved Matter . | . . . Retrieved Components . | . . . Parts Scanalyzed . | . . . Part Schematics Acquired . | . . . Parts Damaged . | . . . Bothacking | -11 -10 -9 ------------ Run | Yrd Mat Mat Used RIF Installer . | . . . Robots Hacked . | . . . Non-combat . | . . . Combat . | . . . Robot Hacks Applied . | . . . Relay Couplers Released . | . . . Fabnet Peak Effective % . | . . . Robots Rewired . | . . . Allies Hacked . | . . . Hacks Repelled . | . . . Allies | -11 -10 -9 -------- Run | Yrd Mat Mat Total Allies . | . . . Largest Group . | . . . Highest-Rated Group . | . . . Highest-Rated Ally . | . . . Total Orders . | . . . Ally Attacks . | . . . Total Damage . | . . . Kills . | . . . Allies Corrupted . | . . . Allies Melted . | . . . Intel | -11 -10 -9 ------- Run | Yrd Mat Mat Active Infowar (turns) 1508 | 290 972 246 Seismic 1508 | 290 972 246 Robot Analysis Total . | . . . Derelict Logs Recovered . | . . . Drone Launches . | . . . Drone Recoveries . | . . . Exploration | -11 -10 -9 ------------- Run | Yrd Mat Mat Turns Passed 1595 | 377 972 246 Spaces Moved 744 | 164 433 147 Core 2 | 2 . . Treads 588 | 162 426 . Legs 154 | . 7 147 Wheels . | . . . Hover . | . . . Flight . | . . . Fastest Speed 50 | 50 160 120 Average Speed 152 | 158 160 120 Slowest Speed 190 | 160 190 190 Overloaded Moves . | . . . Propulsion Burnouts . | . . . Robots Hopped . | . . . Potential Cave-ins . | . . . Cave-ins Triggered . | . . . Exploration Rate (%) 26 | 12 51 17 Regions Visited 2 Branch Regions . Pre-discovered Areas . | . . . Known Exits Taken . | . . . Unknown Exits Taken 2 | 1 1 . Scrap Searched . | . . . Spaces Dug . | . . . Terrain Destroyed 75 | . 3 72 Melee . | . . . Projectile . | . . . AOE 75 | . 3 72 Terrain Rammed . | . . . Walls Destroyed . | . . . Machines Disabled . | . . . Actions | -11 -10 -9 --------- Run | Yrd Mat Mat Total 1045 | 225 624 196 Wait 183 | 20 133 30 Move 742 | 163 432 147 Hop . | . . . Pick Up 11 | 5 4 2 Fast Attach 8 | 7 . 1 Attach 1 | . . 1 Detach . | . . . Swap 12 | 1 7 4 Drop 4 | . 2 2 Fire 82 | 29 44 9 Melee . | . . . Ram . | . . . Kick . | . . . Crush 2 | . 2 . Escape Stasis . | . . . Rewire . | . . . Trap . | . . . Miscellaneous . | . . . Route ------- -11/Scrapyard -10/Materials (discovered 3 exits: *Mat / [*Min] / [*Sub]) -9/Materials History --------- Turn | Location | Event 12 | -11/Scrapyard | Discovered new exit (range 14) 378 | -11/Scrapyard | Entered Materials 391 | -10/Materials | Build established: Mutant 758 | -10/Materials | Discovered new exit (range 6) 856 | -10/Materials | Discovered new exit (range 16) 1118 | -10/Materials | Discovered new exit (range 15) 1350 | -10/Materials | Entered another Materials area 1350 | -9/Materials | Evolved 2 slots: Propulsion x1, Utility x1 1596 | -9/Materials | Self-destructed Last Messages --------------- 01440_ The unstable cave ceiling collapses. 01440_ U-05 Engineer lays Concrete. 01441_ U-05 Engineer builds a Wall. 01445_ U-05 Engineer lays Concrete. 01446_ U-05 Engineer builds a Wall. 01446_ G-34 Mercenary destroyed. 01448_ U-05 Engineer builds a Wall. 01451_ Acquired 50 matter. 01452_ U-05 Engineer builds a Door. 01454_ The unstable cave ceiling collapses. 01515_ Acquired Imp. Targeting Computer. 01520_ Acquired Hcp. Matter Pod. 01521_ Dropped Aluminum Leg. 01521_ Dropped Med. Matter Pod. 01524_ Extracted 100 matter. 01527_ Acquired Aluminum Leg. 01584_ G-34 Mercenary destroyed. 01593_ Chain reaction triggered in Ion Engine. 01593_ G-34 Mercenary destroyed. 01594_ Fusion Modulator explodes. Map ----- +----------------------------------------------------+ | | | | | | | | | | | | | | | | | | | | | | | | | | | | | | | | | | | ??????????????#;; ;; ????????????????????? | | ??????????????#; ; ????????????????????? | | ??????????????#; ; ????????????????????? | | ?????????????##; ;#????????????????????? | | ?????????????# ; ;#????????????????????? | | ?????????????# ; ;#????????????????????? | | ?###########??#; ;#????????????????????? | | ?# """ # #??#; % #?????????????????????? | | ?# """ # #??#; =% @ #?????????????????##### | | ?# """ + ######;; ##########????######## # | | ?# # T ^^ #????# # # | | ?# ! # +????# # # | | ?# # != ############????# + # | | ######### != #???????????????# "T" # # | | # + ! #???????????????# """ # # | | # # #???????????????# # # | | # # ###########?????######## # | | # """# # ####?????????# # | | # """# # #?????????# # | | # """# #* # ##?######## + | | # + [! # [[ # #?# # | | # """# !! /= ####### # | | # """# ! # "" + # | | # """# ########## S ########+##### # | | # # ????????# " # ## # | | ######### ???????#### ## # # ## # | | ????????# ?????????# # ## # | | ????????# !????????#### # ### !!!## # | | ????????# !#??????????#####?# !!!## # | | ????????+ !##????????????????# !! ## # | | ????????? ####?????????????????# # | | ????????? #????????????????????# # | | ????????? ?????????????????????########### T | +----------------------------------------------------+ Best States ------------- Heat Dissipation 28 Energy Generation 14 Energy Capacity 280 Matter Stores 300 Matter Capacity 300 Sight Range 16 Terrain Scan Density 10 Evasion (%) 55 Targeting Accuracy 6 Recoil Reduction 2 Item Schematics ----------------- None Robot Schematics ------------------ None Fabricated ------------ Nothing Repaired ---------- Nothing Alien Tech Used ----------------- None Achievements -------------- None Challenges ------------ None Game ------ Seed LauncherPiercingStorage Manual? 0 Play Time 00:09:12 Cumulative 61.3 hours Start 2025.09.14 @ 15:56:54 End 2025.09.14 @ 16:04:42 Sessions 1 Manual Loads 0 Difficulty Rogue Special Mode None Game No. 120 Rogue 118 Adventurer 0 Explorer 2 Win Type - Total 0 Types 0/0/0/0/0/0/0/0/0/0 Lore% 26 Gallery% 41 Achievement% 39 Wizard Run 0 Options --------- Layout 2 ASCII 0 Keyboard 1 Movement Arrows Keybinds 0 Fullscreen 1 Font 28/SmallcapsGlow Map View 50x49 Zoom Use 0% Tactical HUD 1 Map Filters NONE Filters NONE Steam 1 RUN: 0cc7e9da-90b6-4728-acab-836758f01232